[Event "European-ch Seniors 2018"]
[Site "Drammen"]
[Date "2018.08.08"]
[Round "5"]
[White "Hedin, Gunnar"]
[Black "Ackermann, Hans Werner"]
[Result "1-0"]
[ECO "A02"]
[WhiteElo "2179"]
[BlackElo "2246"]
[Annotator "NA"]
[PlyCount "65"]
[EventDate "2018.08.04"]
[EventType "swiss"]
[EventCountry "NOR"]
[SourceTitle "playchess.com"]
[Source "ChessBase"]
[SourceQuality "1"]
[TimeControl "40/5400+30:1800+30"]

1. f4 {[%emt 0:00:00]} g6 {[%emt 0:00:06]} 2. Nf3 {[%emt 0:00:00]} Bg7 {[%emt 0:00:05]} 3. g3 {[%emt 0:00:00]} d5 {[%emt 0:00:32]} 4. Bg2 {[%emt 0:00:07]} c6 {[%emt 0:00:27]} 5. d3 {[%emt 0:03:48]} Bg4 {[%emt 0:03:22]} 6. c3 {[%emt 0:08:09]} Nf6 {[%emt 0:23:33]} 7. Ne5 {[%emt 0:10:00]} Be6 {[%emt 0:02:32]} 8. O-O {[%emt 0:02:33]} Nbd7 {[%emt 0:06:12]} 9. Nxd7 {[%emt 0:01:56]} Qxd7 {[%emt 0:02:00]} 10. e4 {[%emt 0:01:23]} dxe4 {[%emt 0:04:33]} 11. dxe4 {[%emt 0:00:22]} Qc7 {[%emt 0:00:14]} 12. Qe2 {[%emt 0:04:38]} h5 {[%emt 0:21:04]} 13. h3 {[%emt 0:19:08]} Qd7 {[%emt 0:15:12]} 14. Kh2 {[%emt 0:02:00]} Rd8 {[%emt 0:06:01]} 15. Be3 {[%emt 0:02:16]} Qc7 {[%emt 0:04:36]} 16. Bd4 {[%emt 0:07:40]} b6 {[%emt 0:02:23]} 17. Na3 {[%emt 0:00:46]} Qc8 {[%emt 0:01:28]} 18. Rae1 {[%emt 0:06:43]} Bd7 {[%emt 0:03:17]} 19. f5 {[%emt 0:06:52]} c5 {[%emt 0:00:28]} 20. Bxf6 {[%emt 0:02:13]} Bxf6 {[%emt 0:00:17]} 21. e5 {[%emt 0:00:11]} Bg7 {[%emt 0:00:07]} 22. e6 {[%emt 0:00:32]} fxe6 {[%emt 0:00:08]} 23. fxe6 {[%emt 0:00:56]} Bc6 {[%emt 0:00:06]} 24. Qc2 {[%emt 0:02:53]} Rh6 {[%emt 0:00:23]} 25. Rf7 {[%emt 0:03:43]} Bf6 {[%emt 0:00:20]} 26. Nc4 {[%emt 0:03:53]} h4 {[%emt 0:00:28]} 27. Rh7 {[%emt 0:02:23]} hxg3+ {[%emt 0:00:12]} 28. Kg1 {[%emt 0:00:04]} Rxh7 {[%emt 0:01:00]} 29. Qxg6+ {[%emt 0:00:04]} Kf8 {[%emt 0:00:07]} 30. Qxh7 {[%emt 0:00:04]} Be8 {[%emt 0:00:04]} 31. Bb7 {[%emt 0:05:17]} Qxb7 {[%emt 0:00:50]} 32. Rf1 {[%emt 0:00:01]} Rd1 {[%emt 0:00:08]} 33. Qh8# {[%emt 0:00:30]} 1-0

[Event "European-ch Seniors 2018"]
[Site "Drammen"]
[Date "2018.08.08"]
[Round "5"]
[White "Blomstrom, Lars"]
[Black "Biro, Sandor"]
[Result "1-0"]
[ECO "C10"]
[WhiteElo "2167"]
[BlackElo "2193"]
[Annotator "NA"]
[PlyCount "95"]
[EventDate "2018.08.04"]
[EventType "swiss"]
[EventCountry "NOR"]
[SourceTitle "playchess.com"]
[Source "ChessBase"]
[SourceQuality "1"]
[TimeControl "40/5400+30:1800+30"]

1. e4 {[%emt 0:00:00]} e6 {[%emt 0:02:58]} 2. d4 {[%emt 0:00:09]} d5 {[%emt 0:00:11]} 3. Nc3 {[%emt 0:02:46]} Nc6 {[%emt 0:01:44]} 4. Nf3 {[%emt 0:02:14]} Nf6 {[%emt 0:00:13]} 5. e5 {[%emt 0:01:51]} Ne4 {[%emt 0:00:08]} 6. Bd3 {[%emt 0:03:12]} Bb4 {[%emt 0:00:06]} 7. Bd2 {[%emt 0:00:20]} Nxd2 {[%emt 0:00:08]} 8. Qxd2 {[%emt 0:00:02]} f6 {[%emt 0:00:21]} 9. a3 {[%emt 0:02:04]} Be7 {[%emt 0:02:56]} 10. Qe2 {[%emt 0:03:27]} fxe5 {[%emt 0:00:52]} 11. dxe5 {[%emt 0:00:26]} O-O {[%emt 0:01:49]} 12. h4 {[%emt 0:03:03]} h6 {[%emt 0:02:35]} 13. O-O-O {[%emt 0:09:17]} Bd7 {[%emt 0:01:19]} 14. Rh3 {[%emt 0:05:06]} a6 {[%emt 0:17:57]} 15. g4 {[%emt 0:06:43]} Rxf3 {[%emt 0:09:45]} 16. Qxf3 {[%emt 0:06:34]} Nxe5 {[%emt 0:03:55]} 17. Qg2 {[%emt 0:01:07]} c6 {[%emt 0:13:13]} 18. f4 {[%emt 0:03:20]} Nxd3+ {[%emt 0:01:21]} 19. Rhxd3 {[%emt 0:01:48]} Bd6 {[%emt 0:03:54]} 20. g5 {[%emt 0:02:17]} Bxf4+ {[%emt 0:00:38]} 21. Kb1 {[%emt 0:00:03]} hxg5 {[%emt 0:01:30]} 22. Rg1 {[%emt 0:01:07]} Qe7 {[%emt 0:01:37]} 23. hxg5 {[%emt 0:00:36]} e5 {[%emt 0:13:34]} 24. Ne2 {[%emt 0:01:47]} Rf8 {[%emt 0:02:39]} 25. Nxf4 {[%emt 0:00:52]} Rxf4 {[%emt 0:00:19]} 26. g6 {[%emt 0:01:45]} Bf5 {[%emt 0:01:25]} 27. Rg3 {[%emt 0:05:23]} Qf6 {[%emt 0:03:29]} 28. Qh2 {[%emt 0:07:13]} Rh4 {[%emt 0:01:31]} 29. Qf2 {[%emt 0:01:29]} Rc4 {[%emt 0:08:33]} 30. Qa7 {[%emt 0:12:47]} Rxc2 {[%emt 0:01:53]} 31. Ka1 {[%emt 0:00:09]} e4 {[%emt 0:01:49]} 32. Qb8+ {[%emt 0:01:15]} Qf8 {[%emt 0:00:10]} 33. Qxf8+ {[%emt 0:00:28]} Kxf8 {[%emt 0:00:06]} 34. Rf1 {[%emt 0:00:05]} Ke7 {[%emt 0:00:22]} 35. Rxf5 {[%emt 0:00:09]} Rc1+ {[%emt 0:00:08]} 36. Ka2 {[%emt 0:00:08]} Ke6 {[%emt 0:00:27]} 37. Rf7 {[%emt 0:02:25]} d4 {[%emt 0:00:11]} 38. Rxg7 {[%emt 0:00:14]} d3 {[%emt 0:00:40]} 39. Rg8 {[%emt 0:04:53]} d2 {[%emt 0:00:42]} 40. Rd8 {[%emt 0:00:00]} d1=Q {[%emt 0:00:00]} 41. Rxd1 {[%emt 0:00:15]} Rxd1 {[%emt 0:00:32]} 42. g7 {[%emt 0:00:12]} Rd8 {[%emt 0:00:09]} 43. g8=Q+ {[%emt 0:00:06]} Rxg8 {[%emt 0:00:07]} 44. Rxg8 {[%emt 0:00:14]} Kd5 {[%emt 0:00:07]} 45. Kb1 {[%emt 0:00:44]} Kd4 {[%emt 0:00:14]} 46. Rg3 {[%emt 0:00:49]} e3 {[%emt 0:00:36]} 47. Kc2 {[%emt 0:00:09]} Ke4 {[%emt 0:00:02]} 48. Rg7 {[%emt 0:05:15]} 1-0

[Event "European-ch Seniors 2018"]
[Site "Drammen"]
[Date "2018.08.08"]
[Round "5"]
[White "Gayson, Peter M"]
[Black "Elseth, Roar"]
[Result "1-0"]
[ECO "B56"]
[WhiteElo "2150"]
[BlackElo "2311"]
[Annotator "NA"]
[PlyCount "131"]
[EventDate "2018.08.04"]
[EventType "swiss"]
[EventCountry "NOR"]
[SourceTitle "playchess.com"]
[Source "ChessBase"]
[SourceQuality "1"]
[TimeControl "40/5400+30:1800+30"]

1. e4 {[%emt 0:00:00]} c5 {[%emt 0:00:00]} 2. Nf3 {[%emt 0:00:00]} Nc6 {[%emt 0:00:11]} 3. d4 {[%emt 0:00:08]} cxd4 {[%emt 0:00:07]} 4. Nxd4 {[%emt 0:00:09]} Nf6 {[%emt 0:01:21]} 5. Nc3 {[%emt 0:00:21]} d6 {[%emt 0:02:03]} 6. f4 {[%emt 0:00:33]} g6 {[%emt 0:00:34]} 7. Be2 {[%emt 0:01:11]} Bg7 {[%emt 0:04:14]} 8. Be3 {[%emt 0:02:14]} O-O {[%emt 0:03:07]} 9. O-O {[%emt 0:00:15]} Bd7 {[%emt 0:10:55]} 10. Kh1 {[%emt 0:03:21]} a6 {[%emt 0:10:57]} 11. Qd2 {[%emt 0:08:29]} b5 {[%emt 0:02:29]} 12. Bf3 {[%emt 0:05:18]} Rc8 {[%emt 0:00:50]} 13. a3 {[%emt 0:25:22]} Na5 {[%emt 0:10:01]} 14. b3 {[%emt 0:07:26]} Nc6 {[%emt 0:19:30]} 15. Rad1 {[%emt 0:03:54]} Qc7 {[%emt 0:00:44]} 16. Nde2 {[%emt 0:04:00]} Nb8 {[%emt 0:02:43]} 17. Bd4 {[%emt 0:04:51]} Bc6 {[%emt 0:05:27]} 18. e5 {[%emt 0:05:26]} Ne8 {[%emt 0:00:31]} 19. Qe3 {[%emt 0:08:39]} Bxf3 {[%emt 0:02:06]} 20. Rxf3 {[%emt 0:00:40]} Nc6 {[%emt 0:03:41]} 21. Nd5 {[%emt 0:05:13]} Qb7 {[%emt 0:00:17]} 22. Ba1 {[%emt 0:04:40]} dxe5 {[%emt 0:08:46]} 23. fxe5 {[%emt 0:00:26]} Nd8 {[%emt 0:00:17]} 24. Nb6 {[%emt 0:03:58]} Ne6 {[%emt 0:02:32]} 25. Nxc8 {[%emt 0:00:49]} Qxc8 {[%emt 0:00:05]} 26. Qc3 {[%emt 0:01:03]} Qb8 {[%emt 0:01:20]} 27. Rfd3 {[%emt 0:00:53]} Nd6 {[%emt 0:00:15]} 28. Ng3 {[%emt 0:01:53]} Qa8 {[%emt 0:01:01]} 29. Qe1 {[%emt 0:00:39]} Nf5 {[%emt 0:00:43]} 30. Nxf5 {[%emt 0:00:19]} gxf5 {[%emt 0:00:06]} 31. Qf2 {[%emt 0:00:50]} f4 {[%emt 0:00:45]} 32. Qf3 {[%emt 0:00:23]} Qc8 {[%emt 0:00:23]} 33. R3d2 {[%emt 0:00:51]} Qc5 {[%emt 0:00:11]} 34. b4 {[%emt 0:00:39]} Qc7 {[%emt 0:00:39]} 35. Qe4 {[%emt 0:00:27]} Rc8 {[%emt 0:01:23]} 36. h3 {[%emt 0:00:51]} Qc4 {[%emt 0:00:42]} 37. Qxc4 {[%emt 0:00:47]} Rxc4 {[%emt 0:00:08]} 38. Kg1 {[%emt 0:00:28]} Re4 {[%emt 0:00:25]} 39. Kf2 {[%emt 0:00:14]} Rc4 {[%emt 0:02:21]} 40. h4 {[%emt 0:00:00]} h5 {[%emt 0:00:00]} 41. Kf3 {[%emt 0:03:12]} Kh7 {[%emt 0:04:02]} 42. Re1 {[%emt 0:02:24]} Kg6 {[%emt 0:01:19]} 43. Re4 {[%emt 0:00:59]} Rc7 {[%emt 0:01:49]} 44. c4 {[%emt 0:10:50]} bxc4 {[%emt 0:00:30]} 45. Rc2 {[%emt 0:00:15]} Rd7 {[%emt 0:00:30]} 46. Ke2 {[%emt 0:03:33]} Kf5 {[%emt 0:07:29]} 47. Rexc4 {[%emt 0:01:07]} Bxe5 {[%emt 0:02:00]} 48. Bxe5 {[%emt 0:00:17]} Kxe5 {[%emt 0:00:06]} 49. Rd2 {[%emt 0:01:48]} Nd4+ {[%emt 0:00:10]} 50. Kf2 {[%emt 0:01:29]} Ke4 {[%emt 0:13:20]} 51. Rc6 {[%emt 0:02:47]} Ra7 {[%emt 0:04:03]} 52. Rh6 {[%emt 0:02:04]} a5 {[%emt 0:00:35]} 53. b5 {[%emt 0:00:56]} e5 {[%emt 0:02:28]} 54. a4 {[%emt 0:01:28]} f5 {[%emt 0:02:07]} 55. Ra6 {[%emt 0:00:55]} Rg7 {[%emt 0:00:47]} 56. Rxa5 {[%emt 0:01:23]} Nb3 {[%emt 0:01:04]} 57. Re2+ {[%emt 0:00:06]} Kd3 {[%emt 0:00:06]} 58. Ra6 {[%emt 0:00:22]} e4 {[%emt 0:00:07]} 59. Rd6+ {[%emt 0:00:31]} Nd4 {[%emt 0:00:16]} 60. b6 {[%emt 0:02:30]} e3+ {[%emt 0:00:15]} 61. Kf1 {[%emt 0:00:12]} Ke4 {[%emt 0:01:05]} 62. Rxd4+ {[%emt 0:02:22]} Kxd4 {[%emt 0:00:05]} 63. Rb2 {[%emt 0:00:08]} Kd3 {[%emt 0:02:10]} 64. b7 {[%emt 0:00:46]} e2+ {[%emt 0:00:32]} 65. Ke1 {[%emt 0:00:41]} f3 {[%emt 0:01:01]} 66. Rb3+ {[%emt 0:00:35]} 1-0

[Event "European-ch Seniors 2018"]
[Site "Drammen"]
[Date "2018.08.08"]
[Round "5"]
[White "Bjerke, Richard"]
[Black "Eriksen, Terje"]
[Result "1-0"]
[ECO "E11"]
[WhiteElo "2141"]
[BlackElo "2142"]
[Annotator "NA"]
[PlyCount "77"]
[EventDate "2018.08.04"]
[EventType "swiss"]
[EventCountry "NOR"]
[SourceTitle "playchess.com"]
[Source "ChessBase"]
[SourceQuality "1"]
[TimeControl "40/5400+30:1800+30"]

1. d4 {[%emt 0:00:00]} Nf6 {[%emt 0:00:00]} 2. c4 {[%emt 0:00:00]} e6 {[%emt 0:00:01]} 3. Nf3 {[%emt 0:00:29]} Bb4+ {[%emt 0:01:21]} 4. Bd2 {[%emt 0:01:16]} a5 {[%emt 0:00:50]} 5. g3 {[%emt 0:00:53]} d5 {[%emt 0:01:05]} 6. Qc2 {[%emt 0:02:47]} dxc4 {[%emt 0:03:23]} 7. Qxc4 {[%emt 0:02:44]} b6 {[%emt 0:00:09]} 8. Bg2 {[%emt 0:04:15]} Ba6 {[%emt 0:00:57]} 9. Qc2 {[%emt 0:01:33]} O-O {[%emt 0:03:27]} 10. Nc3 {[%emt 0:02:04]} Ra7 {[%emt 0:11:26]} 11. O-O {[%emt 0:03:16]} Nbd7 {[%emt 0:26:59]} 12. Rfd1 {[%emt 0:03:54]} Qe7 {[%emt 0:05:12]} 13. Bf4 {[%emt 0:09:09]} Bd6 {[%emt 0:14:27]} 14. Bg5 {[%emt 0:10:00]} h6 {[%emt 0:02:19]} 15. Bxf6 {[%emt 0:05:34]} Nxf6 {[%emt 0:01:48]} 16. e4 {[%emt 0:02:01]} e5 {[%emt 0:03:17]} 17. dxe5 {[%emt 0:01:19]} Bxe5 {[%emt 0:00:11]} 18. Nd5 {[%emt 0:02:12]} Nxd5 {[%emt 0:01:47]} 19. Rxd5 {[%emt 0:01:35]} Bd6 {[%emt 0:04:09]} 20. Nd4 {[%emt 0:01:53]} Qe8 {[%emt 0:02:51]} 21. Nf5 {[%emt 0:06:03]} Bc5 {[%emt 0:03:41]} 22. Qc3 {[%emt 0:02:25]} f6 {[%emt 0:00:23]} 23. Qf3 {[%emt 0:17:49]} Bc8 {[%emt 0:04:22]} 24. Rad1 {[%emt 0:03:39]} c6 {[%emt 0:01:35]} 25. R5d2 {[%emt 0:00:34]} Bxf5 {[%emt 0:02:15]} 26. exf5 {[%emt 0:01:23]} Re7 {[%emt 0:00:17]} 27. h4 {[%emt 0:01:03]} Re1+ {[%emt 0:00:37]} 28. Kh2 {[%emt 0:00:14]} Rxd1 {[%emt 0:00:22]} 29. Rxd1 {[%emt 0:02:02]} Qe7 {[%emt 0:01:23]} 30. Rd2 {[%emt 0:01:01]} Rd8 {[%emt 0:00:51]} 31. Re2 {[%emt 0:01:58]} Qd7 {[%emt 0:00:23]} 32. Qxc6 {[%emt 0:01:04]} Qxf5 {[%emt 0:02:40]} 33. Bh3 {[%emt 0:03:09]} Qh5 {[%emt 0:00:51]} 34. f3 {[%emt 0:03:35]} Qg6 {[%emt 0:01:09]} 35. Bg4 {[%emt 0:01:14]} h5 {[%emt 0:00:21]} 36. Qe6+ {[%emt 0:00:30]} Kh8 {[%emt 0:00:25]} 37. Bf5 {[%emt 0:00:26]} Bg1+ {[%emt 0:00:39]} 38. Kg2 {[%emt 0:00:19]} Qh6 {[%emt 0:00:36]} 39. Qe8+ {[%emt 0:00:10]} 1-0

[Event "European-ch Seniors 2018"]
[Site "Drammen"]
[Date "2018.08.08"]
[Round "5"]
[White "Jensen, Thore Nyboe"]
[Black "Ali, Karim"]
[Result "1/2-1/2"]
[ECO "C10"]
[WhiteElo "2083"]
[BlackElo "1819"]
[Annotator "NA"]
[PlyCount "116"]
[EventDate "2018.08.04"]
[EventType "swiss"]
[EventCountry "NOR"]
[SourceTitle "playchess.com"]
[Source "ChessBase"]
[SourceQuality "1"]
[TimeControl "40/5400+30:1800+30"]

1. e4 {[%emt 0:00:00]} e6 {[%emt 0:00:00]} 2. d4 {[%emt 0:00:00]} d5 {[%emt 0:00:00]} 3. Nc3 {[%emt 0:00:00]} dxe4 {[%emt 0:00:11]} 4. Nxe4 {[%emt 0:00:04]} Nf6 {[%emt 0:00:04]} 5. Bd3 {[%emt 0:01:25]} Nxe4 {[%emt 0:02:02]} 6. Bxe4 {[%emt 0:00:04]} Nd7 {[%emt 0:02:57]} 7. Nf3 {[%emt 0:12:08]} Nf6 {[%emt 0:01:32]} 8. Bd3 {[%emt 0:00:06]} c5 {[%emt 0:02:31]} 9. O-O {[%emt 0:02:57]} cxd4 {[%emt 0:01:00]} 10. Nxd4 {[%emt 0:01:04]} Be7 {[%emt 0:00:19]} 11. Bf4 {[%emt 0:13:49]} a6 {[%emt 0:00:52]} 12. c4 {[%emt 0:04:56]} Qxd4 {[%emt 0:00:41]} 13. Qf3 {[%emt 0:00:14]} O-O {[%emt 0:01:10]} 14. Rfd1 {[%emt 0:02:06]} Qc5 {[%emt 0:00:34]} 15. Rd2 {[%emt 0:02:30]} Qh5 {[%emt 0:02:49]} 16. Qg3 Qg4 {[%emt 0:01:06]} 17. Qe3 {[%emt 0:05:33]} Qh5 {[%emt 0:00:54]} 18. h3 {[%emt 0:03:53]} Qc5 {[%emt 0:03:39]} 19. Qf3 {[%emt 0:03:21]} Bd7 {[%emt 0:02:11]} 20. Qxb7 {[%emt 0:00:39]} Bc6 {[%emt 0:00:14]} 21. Qb3 {[%emt 0:00:44]} e5 {[%emt 0:07:31]} 22. Be3 {[%emt 0:00:43]} Qb4 {[%emt 0:00:11]} 23. Qc2 {[%emt 0:00:34]} Qb7 {[%emt 0:02:31]} 24. f3 {[%emt 0:11:41]} Rfe8 {[%emt 0:03:57]} 25. a3 {[%emt 0:05:44]} e4 {[%emt 0:01:04]} 26. fxe4 {[%emt 0:00:07]} Bxe4 {[%emt 0:00:09]} 27. b4 {[%emt 0:03:06]} Rad8 {[%emt 0:08:02]} 28. Rad1 {[%emt 0:01:54]} h6 {[%emt 0:11:55]} 29. c5 {[%emt 0:03:47]} Rxd3 {[%emt 0:02:12]} 30. Rxd3 {[%emt 0:00:04]} Bxd3 {[%emt 0:00:10]} 31. Rxd3 {[%emt 0:00:39]} Qc6 {[%emt 0:01:18]} 32. Qc4 {[%emt 0:08:04]} Bf8 {[%emt 0:04:06]} 33. Bf4 {[%emt 0:01:51]} Re1+ {[%emt 0:01:53]} 34. Kf2 {[%emt 0:01:53]} Re4 {[%emt 0:02:16]} 35. Rd4 {[%emt 0:00:49]} Rxd4 {[%emt 0:02:24]} 36. Qxd4 {[%emt 0:00:01]} Nd5 {[%emt 0:00:06]} 37. Be5 {[%emt 0:01:31]} f6 {[%emt 0:06:38]} 38. Bg3 {[%emt 0:00:54]} g5 {[%emt 0:00:50]} 39. Kg1 {[%emt 0:00:36]} Kf7 {[%emt 0:01:54]} 40. h4 {[%emt 0:00:00]} a5 {[%emt 0:00:00]} 41. Qc4 {[%emt 0:04:03]} Kg7 {[%emt 0:09:07]} 42. Kh1 {[%emt 0:05:42]} axb4 {[%emt 0:00:27]} 43. axb4 {[%emt 0:00:04]} Ne3 {[%emt 0:02:10]} 44. Qe2 {[%emt 0:03:17]} Nf5 {[%emt 0:08:43]} 45. Bf2 {[%emt 0:04:03]} Qd5 {[%emt 0:07:16]} 46. h5 {[%emt 0:04:12]} Be7 {[%emt 0:00:55]} 47. Kg1 {[%emt 0:05:17]} Bd8 {[%emt 0:01:32]} 48. b5 {[%emt 0:00:27]} Bc7 {[%emt 0:00:34]} 49. g4 {[%emt 0:04:05]} Nh4 {[%emt 0:02:31]} 50. Qe7+ {[%emt 0:02:45]} Qf7 {[%emt 0:07:04]} 51. Qe4 {[%emt 0:05:48]} f5 {[%emt 0:05:18]} 52. Bd4+ {[%emt 0:02:32]} Kf8 {[%emt 0:00:28]} 53. gxf5 {[%emt 0:03:03]} Qb3 {[%emt 0:05:16]} 54. b6 {[%emt 0:01:17]} Qd1+ {[%emt 0:04:31]} 55. Kf2 {[%emt 0:00:02]} Qd2+ {[%emt 0:00:10]} 56. Kf1 {[%emt 0:00:14]} Qd1+ {[%emt 0:02:09]} 57. Kf2 {[%emt 0:00:32]} Qd2+ {[%emt 0:02:54]} 58. Kf1 {[%emt 0:00:04]} Qd1+ 1/2-1/2

[Event "European-ch Seniors 2018"]
[Site "Drammen"]
[Date "2018.08.08"]
[Round "5"]
[White "Birkholz, Olga"]
[Black "Wagner-Michel, Annett"]
[Result "0-1"]
[ECO "B59"]
[WhiteElo "2048"]
[BlackElo "2120"]
[Annotator "NA"]
[PlyCount "128"]
[EventDate "2018.08.04"]
[EventType "swiss"]
[EventCountry "NOR"]
[SourceTitle "playchess.com"]
[Source "ChessBase"]
[SourceQuality "1"]
[TimeControl "40/5400+30:1800+30"]

1. e4 {[%emt 0:01:10]} c5 {[%emt 0:00:00]} 2. Nf3 {[%emt 0:00:08]} Nc6 {[%emt 0:00:00]} 3. d4 {[%emt 0:00:32]} cxd4 {[%emt 0:00:00]} 4. Nxd4 {[%emt 0:00:02]} Nf6 {[%emt 0:00:04]} 5. Nc3 {[%emt 0:00:01]} d6 {[%emt 0:00:35]} 6. Be2 {[%emt 0:00:22]} e5 {[%emt 0:00:24]} 7. Nb3 {[%emt 0:00:18]} Be7 {[%emt 0:00:12]} 8. Be3 {[%emt 0:06:04]} O-O {[%emt 0:00:41]} 9. f3 {[%emt 0:07:40]} a5 {[%emt 0:04:38]} 10. Nd5 {[%emt 0:09:56]} Nxd5 {[%emt 0:02:37]} 11. exd5 {[%emt 0:00:01]} Nb8 {[%emt 0:00:28]} 12. Nd2 {[%emt 0:06:10]} Nd7 {[%emt 0:05:32]} 13. O-O {[%emt 0:01:21]} f5 {[%emt 0:02:23]} 14. a4 {[%emt 0:00:38]} Nb6 {[%emt 0:19:31]} 15. c4 {[%emt 0:01:34]} Nd7 {[%emt 0:04:02]} 16. Qc2 {[%emt 0:07:47]} b6 {[%emt 0:03:18]} 17. f4 {[%emt 0:07:02]} Nc5 {[%emt 0:06:16]} 18. Nb3 {[%emt 0:21:58]} Bd7 {[%emt 0:12:29]} 19. Nc1 {[%emt 0:07:26]} Qe8 {[%emt 0:04:38]} 20. Bd1 {[%emt 0:05:33]} Bf6 {[%emt 0:06:41]} 21. Ne2 {[%emt 0:00:14]} Rc8 {[%emt 0:01:36]} 22. fxe5 {[%emt 0:05:32]} dxe5 {[%emt 0:00:13]} 23. Nc3 {[%emt 0:01:32]} Qe7 {[%emt 0:05:35]} 24. Rc1 {[%emt 0:01:19]} f4 {[%emt 0:03:28]} 25. Bf2 {[%emt 0:02:56]} e4 {[%emt 0:02:28]} 26. Be2 {[%emt 0:01:15]} Bf5 {[%emt 0:00:36]} 27. Qd1 {[%emt 0:00:35]} Rcd8 {[%emt 0:04:11]} 28. Bd4 {[%emt 0:00:50]} Bg5 {[%emt 0:00:34]} 29. Kh1 {[%emt 0:00:25]} f3 {[%emt 0:00:12]} 30. gxf3 {[%emt 0:00:32]} Bxc1 {[%emt 0:00:21]} 31. Qxc1 {[%emt 0:00:23]} exf3 {[%emt 0:00:23]} 32. Bxf3 {[%emt 0:01:13]} Bg6 {[%emt 0:02:30]} 33. Qd1 {[%emt 0:00:34]} Qd6 {[%emt 0:00:58]} 34. Nb5 {[%emt 0:01:35]} Qf4 {[%emt 0:01:52]} 35. Bg2 {[%emt 0:00:17]} Qh4 {[%emt 0:01:20]} 36. d6 {[%emt 0:01:07]} Be4 {[%emt 0:00:52]} 37. Bxc5 {[%emt 0:00:44]} Bxg2+ {[%emt 0:00:53]} 38. Kxg2 {[%emt 0:00:01]} Qe4+ {[%emt 0:00:33]} 39. Kg1 {[%emt 0:00:50]} Rxf1+ {[%emt 0:01:01]} 40. Qxf1 {[%emt 0:00:00]} bxc5 {[%emt 0:00:00]} 41. b3 {[%emt 0:02:26]} Rf8 {[%emt 0:04:15]} 42. Qd1 {[%emt 0:00:37]} Qe3+ {[%emt 0:08:33]} 43. Kh1 {[%emt 0:00:03]} Qf3+ {[%emt 0:02:07]} 44. Qxf3 {[%emt 0:00:05]} Rxf3 {[%emt 0:00:02]} 45. Nc7 {[%emt 0:07:11]} Kf7 {[%emt 0:07:43]} 46. d7 {[%emt 0:04:47]} Ke7 {[%emt 0:00:44]} 47. Ne6 {[%emt 0:00:18]} Kxd7 {[%emt 0:00:15]} 48. Nxc5+ {[%emt 0:00:01]} Kc6 {[%emt 0:00:29]} 49. Ne6 {[%emt 0:00:39]} Rf1+ {[%emt 0:01:13]} 50. Kg2 {[%emt 0:00:10]} Rb1 {[%emt 0:00:24]} 51. h4 {[%emt 0:00:50]} g6 {[%emt 0:00:36]} 52. Nf8 {[%emt 0:00:25]} Rxb3 {[%emt 0:01:07]} 53. Nxh7 {[%emt 0:00:13]} Kc5 {[%emt 0:00:12]} 54. Nf8 {[%emt 0:00:18]} Rb4 {[%emt 0:02:38]} 55. Nxg6 {[%emt 0:00:21]} Rxc4 {[%emt 0:00:08]} 56. h5 {[%emt 0:00:49]} Rxa4 {[%emt 0:00:13]} 57. Kf3 {[%emt 0:00:18]} Ra1 {[%emt 0:00:23]} 58. Nh4 {[%emt 0:00:49]} Rf1+ {[%emt 0:00:13]} 59. Kg4 {[%emt 0:00:37]} a4 {[%emt 0:01:18]} 60. h6 {[%emt 0:00:50]} a3 {[%emt 0:01:02]} 61. h7 {[%emt 0:02:07]} Rf8 {[%emt 0:00:57]} 62. Ng6 {[%emt 0:00:12]} Ra8 {[%emt 0:01:20]} 63. h8=Q {[%emt 0:00:16]} Rxh8 {[%emt 0:00:02]} 64. Nxh8 {[%emt 0:00:12]} a2 {[%emt 0:00:04]} 0-1

[Event "European-ch Seniors 2018"]
[Site "Drammen"]
[Date "2018.08.08"]
[Round "5"]
[White "Andersson, Kjell Ake"]
[Black "Clark, Gary M"]
[Result "0-1"]
[ECO "A16"]
[WhiteElo "1940"]
[BlackElo "2285"]
[Annotator "NA"]
[PlyCount "94"]
[EventDate "2018.08.04"]
[EventType "swiss"]
[EventCountry "NOR"]
[SourceTitle "playchess.com"]
[Source "ChessBase"]
[SourceQuality "1"]
[TimeControl "40/5400+30:1800+30"]

1. c4 {[%emt 0:00:00]} Nf6 {[%emt 0:00:00]} 2. Nc3 {[%emt 0:00:23]} g6 {[%emt 0:00:00]} 3. g3 {[%emt 0:00:45]} Bg7 {[%emt 0:00:00]} 4. Bg2 {[%emt 0:00:40]} O-O {[%emt 0:00:03]} 5. Nf3 {[%emt 0:01:24]} c5 {[%emt 0:01:41]} 6. O-O {[%emt 0:03:23]} d5 {[%emt 0:00:36]} 7. cxd5 {[%emt 0:05:17]} Nxd5 {[%emt 0:00:07]} 8. Nxd5 {[%emt 0:05:31]} Qxd5 {[%emt 0:00:15]} 9. d3 {[%emt 0:00:16]} Nc6 {[%emt 0:00:13]} 10. Nd2 {[%emt 0:02:06]} Qd7 {[%emt 0:01:43]} 11. Rb1 {[%emt 0:03:33]} b6 {[%emt 0:07:09]} 12. Nc4 {[%emt 0:02:36]} Bb7 {[%emt 0:00:42]} 13. Be3 {[%emt 0:00:55]} Rac8 {[%emt 0:02:41]} 14. Qd2 {[%emt 0:02:48]} Rfd8 {[%emt 0:01:35]} 15. Rfc1 {[%emt 0:08:37]} e5 {[%emt 0:10:24]} 16. Bh6 {[%emt 0:06:22]} f6 {[%emt 0:17:50]} 17. Bxg7 {[%emt 0:05:10]} Kxg7 {[%emt 0:00:35]} 18. Ne3 {[%emt 0:00:56]} f5 {[%emt 0:03:48]} 19. Nc4 {[%emt 0:05:04]} Qe7 {[%emt 0:08:11]} 20. Re1 {[%emt 0:05:10]} Rd4 {[%emt 0:04:29]} 21. Qc3 {[%emt 0:02:16]} Rcd8 {[%emt 0:02:34]} 22. Rbd1 {[%emt 0:01:05]} b5 {[%emt 0:11:02]} 23. Na5 {[%emt 0:09:44]} Nxa5 {[%emt 0:02:50]} 24. Qxa5 {[%emt 0:01:19]} Bxg2 {[%emt 0:00:07]} 25. Kxg2 {[%emt 0:00:16]} Qb7+ {[%emt 0:00:19]} 26. Kg1 {[%emt 0:00:31]} Qb6 {[%emt 0:01:48]} 27. Qc3 {[%emt 0:03:08]} c4 {[%emt 0:01:54]} 28. Rc1 {[%emt 0:07:29]} b4 {[%emt 0:01:41]} 29. Qc2 {[%emt 0:03:54]} cxd3 {[%emt 0:04:31]} 30. exd3 {[%emt 0:00:41]} Rxd3 {[%emt 0:02:37]} 31. Rxe5 {[%emt 0:00:34]} Rd2 {[%emt 0:06:46]} 32. Qc7+ {[%emt 0:01:04]} Qxc7 {[%emt 0:00:10]} 33. Rxc7+ {[%emt 0:00:11]} Kf6 {[%emt 0:00:06]} 34. Ra5 {[%emt 0:02:32]} Rxb2 {[%emt 0:00:24]} 35. h4 {[%emt 0:01:33]} Rd1+ {[%emt 0:02:43]} 36. Kg2 {[%emt 0:00:29]} Rdd2 {[%emt 0:00:05]} 37. Rc6+ {[%emt 0:00:49]} Kg7 {[%emt 0:00:25]} 38. Rxa7+ {[%emt 0:00:29]} Kh6 {[%emt 0:00:07]} 39. Rcc7 {[%emt 0:01:08]} Rxf2+ {[%emt 0:00:05]} 40. Kg1 {[%emt 0:00:00]} Rg2+ {[%emt 0:00:00]} 41. Kf1 {[%emt 0:04:23]} Kh5 {[%emt 0:02:11]} 42. Rc4 {[%emt 0:01:55]} h6 {[%emt 0:00:50]} 43. Rxb4 {[%emt 0:00:58]} Rbf2+ {[%emt 0:02:51]} 44. Ke1 {[%emt 0:01:14]} Rc2 {[%emt 0:00:14]} 45. Kd1 {[%emt 0:02:01]} Rxa2 {[%emt 0:00:37]} 46. Rxa2 {[%emt 0:00:33]} Rxa2 {[%emt 0:00:02]} 47. Ke1 {[%emt 0:00:27]} Rg2 {[%emt 0:00:55]} 0-1